Workbook

Sheet VYHODNOCENÍ
A1: VYHODNOCENÍ | E1: kurz EUR/CZK: | F1: 25.175 | J1: =SUBTOTAL(9,J3:J655) -> 1042.15 | K1: =M1/J1 -> 7181.613012 | L1: =N1/J1 -> 285.1581538 | M1: =SUBTOTAL(9,M3:M655) -> 7484318 | N1: =SUBTOTAL(9,N3:N655) -> 297177.57 | O1: 13967 | P1: =SUBTOTAL(9,P3:P2161) -> 14491665.71 | Q1: 6794 | R1: 555 | S1: =SUBTOTAL(9,S3:S2161) -> 575637.1682
A2: EVIDENČNÍ ČÍSLO (Nummer) | B2: ŠTÍTEK (Etikett) | C2: ZÁMĚR (Bereitstellungsmeldung Nr.) | D2: PŮVOD (Herkunft) | E2: DŘEVINA (Holz) | F2: DÉLKA (Lang) [m] | G2: STŘED. TLOUŠŤKA (Mittendicke) [cm] | H2: SORTIMENT | I2: ZÓNA | J2: m3 | K2: VYVOLÁVACÍ CENA [KČ/m3] | L2: VYVOLÁVACÍ CENA (Startpreis) [EUR/m3] | M2: VYVOLÁVACÍ CENA ZA KS (Kč) | N2: VYVOLÁVACÍ CENA ZA KS (Startpreis Stk) (EUR) | O2: VÍTĚZNÁ CENA [Kč/m3] | P2: VÍTĚZNÁ CENA ZA KS (Kč) | Q2: VÍTĚZNÁ MÍNUS VYVOLÁVACÍ | R2: VÍTĚZNÁ CENA (gewinnender Preis) (EUR/m3) | S2: VÍTĚZNÁ CENA ZA KS (gewinnender Preis) (EUR) | T2: ČETNOST NABÍDEK | U2: EVIDENČNÍ ČÍSLO (Nummer)
A3: 1 | B3: 13560 | C3: 23\07 | D3: PLO 36 | E3: MD | F3: 8 | G3: 42 | H3: A | I3: A | J3: 0.92 | K3: 5500 | L3: 218 | M3: =J3*K3 -> 5060 | N3: =J3*L3 -> 200.56 | O3: 6581 | P3: 6054.52 | Q3: 1081 | R3: 261.4101291 | S3: 240.4973188 | T3: 4 | U3: 1
A4: 2 | B4: 13561 | C4: 23\07 | D4: PLO 36 | E4: MD | F4: 8 | G4: 62 | H4: II | I4: A | J4: 2.02 | K4: 7000 | L4: 278 | M4: =J4*K4 -> 14140 | N4: =J4*L4 -> 561.56 | O4: 15681 | P4: 31675.62 | Q4: 8681 | R4: 622.8798411 | S4: 1258.217279 | T4: 6 | U4: 2
A5: 3 | B5: 13562 | C5: 23\07 | D5: PLO 36 | E5: MD | F5: 6.8 | G5: 47 | H5: II | I5: A | J5: 0.98 | K5: 7000 | L5: 278 | M5: 6860 | N5: 272.44 | O5: 10296.575 | P5: 10090.6435 | Q5: 3296.575 | R5: 409 | S5: 400.82 | T5: 6 | U5: 3
A6: 4 | B6: 13563 | C6: 23\07 | D6: PLO 36 | E6: MD | F6: 8 | G6: 55 | H6: A | I6: A | J6: 1.59 | K6: 5500 | L6: 218 | M6: 8745 | N6: 346.62 | O6: 7149.7 | P6: 11368.023 | Q6: 1649.7 | R6: 284 | S6: 451.56 | T6: 4 | U6: 4
A7: 5 | B7: 13564 | C7: 23\07 | D7: PLO 36 | E7: MD | F7: 8 | G7: 55 | H7: A | I7: A | J7: 1.59 | K7: 5500 | L7: 218 | M7: 8745 | N7: 346.62 | O7: 6581 | P7: 10463.79 | Q7: 1081 | R7: 261.4101291 | S7: 415.6421053 | T7: 3 | U7: 5
A8: 6 | B8: 13565 | C8: 23\07 | D8: PLO 36 | E8: MD | F8: 8 | G8: 50 | H8: A | I8: A | J8: 1.31 | K8: 5500 | L8: 218 | M8: 7205 | N8: 285.58 | O8: 6581 | P8: 8621.11 | Q8: 1081 | R8: 261.4101291 | S8: 342.4472691 | T8: 3 | U8: 6
A9: 7 | B9: 13566 | C9: 23\07 | D9: PLO 36 | E9: MD | F9: 8 | G9: 40 | H9: B | I9: B | J9: 0.83 | K9: 4000 | L9: 159 | M9: 3320 | N9: 131.97 | O9: 6281 | P9: 5213.23 | Q9: 2281 | R9: 249.4935452 | S9: 207.0796425 | T9: 3 | U9: 7
A10: 8 | B10: 13567 | C10: 23\07 | D10: PLO 36 | E10: MD | F10: 8 | G10: 53 | H10: A | I10: A | J10: 1.47 | K10: 5500 | L10: 218 | M10: 8085 | N10: 320.46 | O10: 9037.825 | P10: 13285.60275 | Q10: 3537.825 | R10: 359 | S10: 527.73 | T10: 6 | U10: 8
A11: 9 | B11: 13568 | C11: 23\07 | D11: PLO 36 | E11: MD | F11: 8 | G11: 53 | H11: II | I11: A | J11: 1.47 | K11: 7000 | L11: 278 | M11: 10290 | N11: 408.66 | O11: 12814.075 | P11: 18836.69025 | Q11: 5814.075 | R11: 509 | S11: 748.23 | T11: 5 | U11: 9
A12: 10 | B12: 13569 | C12: 23\07 | D12: PLO 36 | E12: MD | F12: 8 | G12: 50 | H12: A | I12: A | J12: 1.31 | K12: 5500 | L12: 218 | M12: 7205 | N12: 285.58 | O12: 9281 | P12: 12158.11 | Q12: 3781 | R12: 368.6593843 | S12: 482.9437934 | T12: 6 | U12: 10
A13: 11 | B13: 13570 | C13: 23\07 | D13: PLO 36 | E13: MD | F13: 8 | G13: 42 | H13: A | I13: A | J13: 0.92 | K13: 5500 | L13: 218 | M13: 5060 | N13: 200.56 | O13: 7881 | P13: 7250.52 | Q13: 2381 | R13: 313.0486594 | S13: 288.0047666 | T13: 3 | U13: 11
A14: 12 | B14: 13571 | C14: 23\07 | D14: PLO 36 | E14: MD | F14: 8 | G14: 45 | H14: A | I14: A | J14: 1.06 | K14: 5500 | L14: 218 | M14: 5830 | N14: 231.08 | O14: 7281 | P14: 7717.86 | Q14: 1781 | R14: 289.2154916 | S14: 306.5684211 | T14: 3 | U14: 12
A15: 13 | B15: 13572 | C15: 23\07 | D15: PLO 36 | E15: MD | F15: 8 | G15: 47 | H15: A | I15: A | J15: 1.16 | K15: 5500 | L15: 218 | M15: 6380 | N15: 252.88 | O15: 9381 | P15: 10881.96 | Q15: 3881 | R15: 372.6315789 | S15: 432.2526316 | T15: 3 | U15: 13
A16: 14 | B16: 13573 | C16: 23\07 | D16: PLO 36 | E16: MD | F16: 8 | G16: 56 | H16: A | I16: A | J16: 1.65 | K16: 5500 | L16: 218 | M16: 9075 | N16: 359.7 | O16: 11881 | P16: 19603.65 | Q16: 6381 | R16: 471.9364449 | S16: 778.6951341 | T16: 5 | U16: 14
A17: 15 | B17: 13574 | C17: 23\07 | D17: PLO 36 | E17: MD | F17: 10 | G17: 63 | H17: A | I17: A | J17: 2.61 | K17: 5500 | L17: 218 | M17: 14355 | N17: 568.98 | O17: 14828.075 | P17: 38701.27575 | Q17: 9328.075 | R17: 589 | S17: 1537.29 | T17: 5 | U17: 15
A18: 16 | B18: 13575 | C18: 23\07 | D18: PLO 36 | E18: MD | F18: 8 | G18: 42 | H18: A | I18: A | J18: 0.92 | K18: 5500 | L18: 218 | M18: 5060 | N18: 200.56 | O18: 7881 | P18: 7250.52 | Q18: 2381 | R18: 313.0486594 | S18: 288.0047666 | T18: 3 | U18: 16
A19: 17 | B19: 13576 | C19: 11\09 | D19: PLO 35 | E19: DG | F19: 11 | G19: 46 | H19: B | I19: B | J19: 1.52 | K19: 2700 | L19: 107 | M19: 4104 | N19: 162.64 | O19: 2661 | P19: 4044.72 | Q19: -39 | R19: 105.7000993 | S19: 160.6641509 | T19: 2 | U19: 17
A20: 18 | B20: 13577 | C20: 11\09 | D20: PLO 35 | E20: DG | F20: 11 | G20: 44 | H20: A | I20: A | J20: 1.39 | K20: 2900 | L20: 115 | M20: 4031 | N20: 159.85 | O20: 2681 | P20: 3726.59 | Q20: -219 | R20: 106.4945382 | S20: 148.0274081 | T20: 2 | U20: 18
A21: 19 | B21: 13578 | C21: 11\09 | D21: PLO 35 | E21: DG | F21: 11 | G21: 47 | H21: A | I21: A | J21: 1.59 | K21: 2900 | L21: 115 | M21: 4611 | N21: 182.85 | O21: 2481 | P21: 3944.79 | Q21: -419 | R21: 98.55014896 | S21: 156.6947368 | T21: 2 | U21: 19
A22: 20 | B22: 13579 | C22: 11\09 | D22: PLO 35 | E22: DG | F22: 11 | G22: 53 | H22: A | I22: A | J22: 2.03 | K22: 2900 | L22: 115 | M22: 5887 | N22: 233.45 | O22: 2481 | P22: 5036.43 | Q22: -419 | R22: 98.55014896 | S22: 200.0568024 | T22: 2 | U22: 20
A23: 21 | B23: 13580 | C23: 11\09 | D23: PLO 35 | E23: DG | F23: 11 | G23: 58 | H23: A | I23: A | J23: 2.43 | K23: 2900 | L23: 115 | M23: 7047 | N23: 279.45 | O23: 2481 | P23: 6028.83 | Q23: -419 | R23: 98.55014896 | S23: 239.476862 | T23: 2 | U23: 21
A24: 22 | B24: 13581 | C24: 11\09 | D24: PLO 35 | E24: DG | F24: 11 | G24: 58 | H24: B | I24: B | J24: 2.43 | K24: 2700 | L24: 107 | M24: 6561 | N24: 260.01 | O24: 1400 | P24: 3402 | Q24: -1300 | R24: 55.61072493 | S24: 135.1340616 | T24: 1 | U24: 22
A25: 23 | B25: 13582 | C25: 11\09 | D25: PLO 35 | E25: DG | F25: 11 | G25: 53 | H25: A | I25: A | J25: 2.03 | K25: 2900 | L25: 115 | M25: 5887 | N25: 233.45 | O25: 2481 | P25: 5036.43 | Q25: -419 | R25: 98.55014896 | S25: 200.0568024 | T25: 2 | U25: 23
A26: 24 | B26: 13583 | C26: 11\09 | D26: PLO 35 | E26: DG | F26: 11 | G26: 53 | H26: A | I26: A | J26: 2.03 | K26: 2900 | L26: 115 | M26: 5887 | N26: 233.45 | O26: 2481 | P26: 5036.43 | Q26: -419 | R26: 98.55014896 | S26: 200.0568024 | T26: 2 | U26: 24
A27: 25 | B27: 13584 | C27: 24\04 | D27: PLO 36 | E27: MD | F27: 11 | G27: 43 | H27: A | I27: A | J27: 1.33 | K27: 5500 | L27: 218 | M27: 7315 | N27: 289.94 | O27: 8881 | P27: 11811.73 | Q27: 3381 | R27: 352.7706058 | S27: 469.1849057 | T27: 4 | U27: 25
A28: 26 | B28: 13585 | C28: 24\04 | D28: PLO 36 | E28: MD | F28: 9 | G28: 55 | H28: II | I28: A | J28: 1.79 | K28: 7000 | L28: 278 | M28: 12530 | N28: 497.62 | O28: 14181 | P28: 25383.99 | Q28: 7181 | R28: 563.2969215 | S28: 1008.30149 | T28: 5 | U28: 26
A29: 27 | B29: 13586 | C29: 24\04 | D29: PLO 36 | E29: MD | F29: 4.9 | G29: 65 | H29: C | I29: B | J29: 1.36 | K29: 3000 | L29: 119 | M29: 4080 | N29: 161.84 | O29: 9314.75 | P29: 12668.06 | Q29: 6314.75 | R29: 370 | S29: 503.2 | T29: 5 | U29: 27
A30: 28 | B30: 13587 | C30: 24\04 | D30: PLO 36 | E30: MD | F30: 6 | G30: 50 | H30: A | I30: A | J30: 0.98 | K30: 5500 | L30: 218 | M30: 5390 | N30: 213.64 | O30: 9289.575 | P30: 9103.7835 | Q30: 3789.575 | R30: 369 | S30: 361.62 | T30: 5 | U30: 28
A31: 29 | B31: 13588 | C31: 24\04 | D31: PLO 36 | E31: MD | F31: 5.9 | G31: 52 | H31: II | I31: A | J31: 1.05 | K31: 7000 | L31: 278 | M31: 7350 | N31: 291.9 | O31: 12881 | P31: 13525.05 | Q31: 5881 | R31: 511.6583913 | S31: 537.2413108 | T31: 5 | U31: 29
A32: 30 | B32: 13589 | C32: 24\04 | D32: PLO 36 | E32: MD | F32: 5 | G32: 64 | H32: A | I32: A | J32: 1.35 | K32: 5500 | L32: 218 | M32: 7425 | N32: 294.3 | O32: 15481 | P32: 20899.35 | Q32: 9981 | R32: 614.9354518 | S32: 830.16286 | T32: 5 | U32: 30
A33: 31 | B33: 13590 | C33: 24\04 | D33: PLO 36 | E33: MD | F33: 6 | G33: 46 | H33: A | I33: A | J33: 0.83 | K33: 5500 | L33: 218 | M33: 4565 | N33: 180.94 | O33: 5581 | P33: 4632.23 | Q33: 81 | R33: 221.6881827 | S33: 184.0011917 | T33: 2 | U33: 31
A34: 32 | B34: 13591 | C34: 24\04 | D34: PLO 36 | E34: MD | F34: 5 | G34: 58 | H34: B | I34: B | J34: 1.11 | K34: 4000 | L34: 159 | M34: 4440 | N34: 176.49 | O34: 11177.7 | P34: 12407.247 | Q34: 7177.7 | R34: 444 | S34: 492.84 | T34: 5 | U34: 32
A35: 33 | B35: 13592 | C35: 24\04 | D35: PLO 36 | E35: MD | F35: 7 | G35: 45 | H35: A | I35: A | J35: 0.93 | K35: 5500 | L35: 218 | M35: 5115 | N35: 202.74 | O35: 7049 | P35: 6555.57 | Q35: 1549 | R35: 280 | S35: 260.4 | T35: 3 | U35: 33
A36: 34 | B36: 13593 | C36: 24\04 | D36: PLO 36 | E36: MD | F36: 6 | G36: 54 | H36: A | I36: A | J36: 1.15 | K36: 5500 | L36: 218 | M36: 6325 | N36: 250.7 | O36: 11051.825 | P36: 12709.59875 | Q36: 5551.825 | R36: 439 | S36: 504.85 | T36: 4 | U36: 34
A37: 35 | B37: 13594 | C37: 24\04 | D37: PLO 36 | E37: MD | F37: 6 | G37: 59 | H37: II | I37: A | J37: 1.37 | K37: 7000 | L37: 278 | M37: 9590 | N37: 380.86 | O37: 14681 | P37: 20112.97 | Q37: 7681 | R37: 583.1578947 | S37: 798.9263158 | T37: 5 | U37: 35
A38: 36 | B38: 13595 | C38: 24\04 | D38: PLO 36 | E38: MD | F38: 4.9 | G38: 52 | H38: B | I38: B | J38: 0.87 | K38: 4000 | L38: 159 | M38: 3480 | N38: 138.33 | O38: 9281 | P38: 8074.47 | Q38: 5281 | R38: 368.6593843 | S38: 320.7336643 | T38: 5 | U38: 36
A39: 37 | B39: 13596 | C39: 24\04 | D39: PLO 36 | E39: MD | F39: 5 | G39: 51 | H39: B | I39: B | J39: 0.85 | K39: 4000 | L39: 159 | M39: 3400 | N39: 135.15 | O39: 7881 | P39: 6698.85 | Q39: 3881 | R39: 313.0486594 | S39: 266.0913605 | T39: 3 | U39: 37
A40: 38 | B40: 13597 | C40: 24\04 | D40: PLO 36 | E40: MD | F40: 5 | G40: 56 | H40: A | I40: A | J40: 1.03 | K40: 5500 | L40: 218 | M40: 5665 | N40: 224.54 | O40: 8282.575 | P40: 8531.05225 | Q40: 2782.575 | R40: 329 | S40: 338.87 | T40: 4 | U40: 38
A41: 39 | B41: 13598 | C41: 24\04 | D41: PLO 36 | E41: MD | F41: 11 | G41: 56 | H41: II | I41: A | J41: 2.27 | K41: 7000 | L41: 278 | M41: 15890 | N41: 631.06 | O41: 13881 | P41: 31509.87 | Q41: 6881 | R41: 551.3803376 | S41: 1251.633366 | T41: 5 | U41: 39
A42: 40 | B42: 13599 | C42: 24\04 | D42: PLO 36 | E42: MD | F42: 11 | G42: 60 | H42: II | I42: A | J42: 2.6 | K42: 7000 | L42: 278 | M42: 18200 | N42: 722.8 | O42: 14681 | P42: 38170.6 | Q42: 7681 | R42: 583.1578947 | S42: 1516.210526 | T42: 5 | U42: 40
A43: 41 | B43: 13600 | C43: 24\04 | D43: PLO 36 | E43: MD | F43: 10 | G43: 53 | H43: A | I43: A | J43: 1.84 | K43: 5500 | L43: 218 | M43: 10120 | N43: 401.12 | O43: 13681 | P43: 25173.04 | Q43: 8181 | R43: 543.4359484 | S43: 999.922145 | T43: 5 | U43: 41
A44: 42 | B44: 13601 | C44: 24\04 | D44: PLO 36 | E44: MD | F44: 11 | G44: 50 | H44: A | I44: A | J44: 1.8 | K44: 5500 | L44: 218 | M44: 9900 | N44: 392.4 | O44: 12581 | P44: 22645.8 | Q44: 7081 | R44: 499.7418073 | S44: 899.5352532 | T44: 5 | U44: 42
A45: 43 | B45: 13602 | C45: 24\15 | D45: PLO 36 | E45: MD | F45: 7 | G45: 65 | H45: A | I45: A | J45: 1.94 | K45: 5500 | L45: 218 | M45: 10670 | N45: 422.92 | O45: 14324.575 | P45: 27789.6755 | Q45: 8824.575 | R45: 569 | S45: 1103.86 | T45: 5 | U45: 43
A46: 44 | B46: 13603 | C46: 24\15 | D46: PLO 36 | E46: MD | F46: 6 | G46: 45 | H46: A | I46: A | J46: 0.79 | K46: 5500 | L46: 218 | M46: 4345 | N46: 172.22 | O46: 6545.5 | P46: 5170.945 | Q46: 1045.5 | R46: 260 | S46: 205.4 | T46: 2 | U46: 44
A47: 45 | B47: 13604 | C47: 24\15 | D47: PLO 36 | E47: MD | F47: 9 | G47: 48 | H47: A | I47: A | J47: 1.36 | K47: 5500 | L47: 218 | M47: 7480 | N47: 296.48 | O47: 8881 | P47: 12078.16 | Q47: 3381 | R47: 352.7706058 | S47: 479.7680238 | T47: 5 | U47: 45
A48: 46 | B48: 13605 | C48: 24\15 | D48: PLO 36 | E48: MD | F48: 9 | G48: 52 | H48: A | I48: A | J48: 1.6 | K48: 5500 | L48: 218 | M48: 8800 | N48: 348.8 | O48: 12881 | P48: 20609.6 | Q48: 7381 | R48: 511.6583913 | S48: 818.653426 | T48: 5 | U48: 46
A49: 47 | B49: 13606 | C49: 24\15 | D49: PLO 36 | E49: MD | F49: 11 | G49: 48 | H49: II | I49: A | J49: 1.66 | K49: 7000 | L49: 278 | M49: 11620 | N49: 461.48 | O49: 10800.075 | P49: 17928.1245 | Q49: 3800.075 | R49: 429 | S49: 712.14 | T49: 5 | U49: 47
A50: 48 | B50: 13607 | C50: 24\15 | D50: PLO 36 | E50: MD | F50: 11 | G50: 53 | H50: A | I50: A | J50: 2.03 | K50: 5500 | L50: 218 | M50: 11165 | N50: 442.54 | O50: 13481 | P50: 27366.43 | Q50: 7981 | R50: 535.4915591 | S50: 1087.047865 | T50: 5 | U50: 48
A51: 49 | B51: 13608 | C51: 24\15 | D51: PLO 36 | E51: MD | F51: 11 | G51: 56 | H51: A | I51: A | J51: 2.27 | K51: 5500 | L51: 218 | M51: 12485 | N51: 494.86 | O51: 13781 | P51: 31282.87 | Q51: 8281 | R51: 547.408143 | S51: 1242.616485 | T51: 5 | U51: 49
A52: 50 | B52: 13609 | C52: 24\15 | D52: PLO 36 | E52: MD | F52: 9 | G52: 54 | H52: A | I52: A | J52: 1.72 | K52: 5500 | L52: 218 | M52: 9460 | N52: 374.96 | O52: 13881 | P52: 23875.32 | Q52: 8381 | R52: 551.3803376 | S52: 948.3741807 | T52: 5 | U52: 50
A53: 51 | B53: 13610 | C53: 24\15 | D53: PLO 36 | E53: MD | F53: 9 | G53: 54 | H53: A | I53: A | J53: 1.72 | K53: 5500 | L53: 218 | M53: 9460 | N53: 374.96 | O53: 13821.075 | P53: 23772.249 | Q53: 8321.075 | R53: 549 | S53: 944.28 | T53: 5 | U53: 51
A54: 52 | B54: 13611 | C54: 24\15 | D54: PLO 36 | E54: MD | F54: 11 | G54: 55 | H54: A | I54: A | J54: 2.19 | K54: 5500 | L54: 218 | M54: 12045 | N54: 477.42 | O54: 14324.575 | P54: 31370.81925 | Q54: 8824.575 | R54: 569 | S54: 1246.11 | T54: 5 | U54: 52
A55: 53 | B55: 13612 | C55: 24\15 | D55: PLO 36 | E55: MD | F55: 9 | G55: 52 | H55: A | I55: A | J55: 1.6 | K55: 5500 | L55: 218 | M55: 8800 | N55: 348.8 | O55: 12881 | P55: 20609.6 | Q55: 7381 | R55: 511.6583913 | S55: 818.653426 | T55: 5 | U55: 53
A56: 54 | B56: 13613 | C56: 24\15 | D56: PLO 36 | E56: MD | F56: 11 | G56: 50 | H56: A | I56: A | J56: 1.8 | K56: 5500 | L56: 218 | M56: 9900 | N56: 392.4 | O56: 12881 | P56: 23185.8 | Q56: 7381 | R56: 511.6583913 | S56: 920.9851043 | T56: 5 | U56: 54
A57: 55 | B57: 13614 | C57: 24\15 | D57: PLO 36 | E57: MD | F57: 11 | G57: 48 | H57: A | I57: A | J57: 1.66 | K57: 5500 | L57: 218 | M57: 9130 | N57: 361.88 | O57: 11881 | P57: 19722.46 | Q57: 6381 | R57: 471.9364449 | S57: 783.4144985 | T57: 5 | U57: 55
A58: 56 | B58: 13615 | C58: 24\15 | D58: PLO 36 | E58: MD | F58: 7 | G58: 51 | H58: A | I58: A | J58: 1.19 | K58: 5500 | L58: 218 | M58: 6545 | N58: 259.42 | O58: 11807.075 | P58: 14050.41925 | Q58: 6307.075 | R58: 469 | S58: 558.11 | T58: 3 | U58: 56
A59: 57 | B59: 13616 | C59: 24\15 | D59: PLO 36 | E59: MD | F59: 7 | G59: 43 | H59: A | I59: A | J59: 0.84 | K59: 5500 | L59: 218 | M59: 4620 | N59: 183.12 | O59: 7779.075 | P59: 6534.423 | Q59: 2279.075 | R59: 309 | S59: 259.56 | T59: 3 | U59: 57
A60: 58 | B60: 13617 | C60: 24\15 | D60: PLO 36 | E60: MD | F60: 7 | G60: 45 | H60: A | I60: A | J60: 0.93 | K60: 5500 | L60: 218 | M60: 5115 | N60: 202.74 | O60: 1300 | P60: 1209 | Q60: -4200 | R60: 51.63853029 | S60: 48.02383317 | T60: 1 | U60: 58
A61: 59 | B61: 13618 | C61: 24\02 | D61: PLO 36 | E61: MD | F61: 9.1 | G61: 52 | H61: A | I61: A | J61: 1.61 | K61: 5500 | L61: 218 | M61: 8855 | N61: 350.98 | O61: 10800.075 | P61: 17388.12075 | Q61: 5300.075 | R61: 429 | S61: 690.69 | T61: 5 | U61: 59
A62: 60 | B62: 13619 | C62: 24\02 | D62: PLO 36 | E62: MD | F62: 9 | G62: 62 | H62: II | I62: A | J62: 2.27 | K62: 7000 | L62: 278 | M62: 15890 | N62: 631.06 | O62: 15583.325 | P62: 35374.14775 | Q62: 8583.325 | R62: 619 | S62: 1405.13 | T62: 6 | U62: 60
A63: 61 | B63: 13620 | C63: 24\02 | D63: PLO 36 | E63: MD | F63: 11 | G63: 57 | H63: II | I63: A | J63: 2.35 | K63: 7000 | L63: 278 | M63: 16450 | N63: 653.3 | O63: 15681 | P63: 36850.35 | Q63: 8681 | R63: 622.8798411 | S63: 1463.767627 | T63: 5 | U63: 61
A64: 62 | B64: 13621 | C64: 24\02 | D64: PLO 36 | E64: MD | F64: 9 | G64: 50 | H64: A | I64: A | J64: 1.48 | K64: 5500 | L64: 218 | M64: 8140 | N64: 322.64 | O64: 12681 | P64: 18767.88 | Q64: 7181 | R64: 503.714002 | S64: 745.4967229 | T64: 5 | U64: 62
A65: 63 | B65: 13622 | C65: 24\02 | D65: PLO 36 | E65: MD | F65: 8 | G65: 45 | H65: A | I65: A | J65: 1.06 | K65: 5500 | L65: 218 | M65: 5830 | N65: 231.08 | O65: 8681 | P65: 9201.86 | Q65: 3181 | R65: 344.8262165 | S65: 365.5157895 | T65: 4 | U65: 63
A66: 64 | B66: 13623 | C66: 24\02 | D66: PLO 36 | E66: MD | F66: 10 | G66: 53 | H66: C | I66: C | J66: 1.84 | K66: 3000 | L66: 119 | M66: 5520 | N66: 218.96 | O66: 12814.075 | P66: 23577.898 | Q66: 9814.075 | R66: 509 | S66: 936.56 | T66: 5 | U66: 64
A67: 65 | B67: 13624 | C67: 24\02 | D67: PLO 36 | E67: MD | F67: 11 | G67: 54 | H67: A | I67: A | J67: 2.11 | K67: 5500 | L67: 218 | M67: 11605 | N67: 459.98 | O67: 13821.075 | P67: 29162.46825 | Q67: 8321.075 | R67: 549 | S67: 1158.39 | T67: 5 | U67: 65
A68: 66 | B68: 13625 | C68: 24\02 | D68: PLO 36 | E68: MD | F68: 11 | G68: 49 | H68: A | I68: A | J68: 1.73 | K68: 5500 | L68: 218 | M68: =J68*K68 -> 9515 | N68: =J68*L68 -> 377.14 | O68: 9881 | P68: 17094.13 | Q68: 4381 | R68: 392.4925521 | S68: 679.0121152 | T68: 5 | U68: 66
A69: 67 | B69: 13626 | C69: 24\02 | D69: PLO 36 | E69: MD | F69: 10 | G69: 58 | H69: A | I69: A | J69: 2.21 | K69: 5500 | L69: 218 | M69: 12155 | N69: 481.78 | O69: 9881 | P69: 21837.01 | Q69: 4381 | R69: 392.4925521 | S69: 867.4085402 | T69: 4 | U69: 67
A70: 68 | B70: 13627 | C70: 24\02 | D70: PLO 36 | E70: MD | F70: 8 | G70: 47 | H70: A | I70: A | J70: 1.16 | K70: 5500 | L70: 218 | M70: 6380 | N70: 252.88 | O70: 8534.325 | P70: 9899.817 | Q70: 3034.325 | R70: 339 | S70: 393.24 | T70: 4 | U70: 68
A71: 69 | B71: 13628 | C71: 24\02 | D71: PLO 36 | E71: MD | F71: 7 | G71: 51 | H71: A | I71: A | J71: 1.19 | K71: 5500 | L71: 218 | M71: 6545 | N71: 259.42 | O71: 10881 | P71: 12948.39 | Q71: 5381 | R71: 432.2144985 | S71: 514.3352532 | T71: 4 | U71: 69
A72: 70 | B72: 13629 | C72: 24\02 | D72: PLO 36 | E72: MD | F72: 9 | G72: 53 | H72: A | I72: A | J72: 1.66 | K72: 5500 | L72: 218 | M72: 9130 | N72: 361.88 | O72: 13681 | P72: 22710.46 | Q72: 8181 | R72: 543.4359484 | S72: 902.1036743 | T72: 5 | U72: 70
A73: 71 | B73: 13630 | C73: 24\02 | D73: PLO 36 | E73: MD | F73: 9 | G73: 46 | H73: A | I73: A | J73: 1.25 | K73: 5500 | L73: 218 | M73: 6875 | N73: 272.5 | O73: 8056 | P73: 10070 | Q73: 2556 | R73: 320 | S73: 400 | T73: 4 | U73: 71
A74: 72 | B74: 13631 | C74: 24\02 | D74: PLO 36 | E74: MD | F74: 8 | G74: 54 | H74: A | I74: A | J74: 1.53 | K74: 5500 | L74: 218 | M74: 8415 | N74: 333.54 | O74: 12681 | P74: 19401.93 | Q74: 7181 | R74: 503.714002 | S74: 770.682423 | T74: 5 | U74: 72
A75: 73 | B75: 13632 | C75: 24\02 | D75: PLO 36 | E75: MD | F75: 8 | G75: 49 | H75: A | I75: A | J75: 1.26 | K75: 5500 | L75: 218 | M75: 6930 | N75: 274.68 | O75: 9281 | P75: 11694.06 | Q75: 3781 | R75: 368.6593843 | S75: 464.5108242 | T75: 4 | U75: 73
A76: 74 | B76: 13633 | C76: LUH\1 | D76: PLO 38 | E76: DB | F76: 7.8 | G76: 64 | H76: B | I76: A | J76: 2.15 | K76: 7500 | L76: 298 | M76: 16125 | N76: 640.7 | O76: 12486.8 | P76: 26846.62 | Q76: 4986.8 | R76: 496 | S76: 1066.4 | T76: 7 | U76: 74
A77: 75 | B77: 13634 | C77: LUH\1 | D77: PLO 38 | E77: DB | F77: 6.5 | G77: 65 | H77: D | I77: C | J77: 1.85 | K77: 3200 | L77: 127 | M77: 5920 | N77: 234.95 | O77: 7577.675 | P77: 14018.69875 | Q77: 4377.675 | R77: 301 | S77: 556.85 | T77: 5 | U77: 75
A78: 76 | B78: 13635 | C78: LUH\1 | D78: PLO 38 | E78: DB | F78: 8.3 | G78: 60 | H78: A | I78: A | J78: 2 | K78: 10000 | L78: 397 | M78: 20000 | N78: 794 | O78: 24293.875 | P78: 48587.75 | Q78: 14293.875 | R78: 965 | S78: 1930 | T78: 10 | U78: 76
A79: 77 | B79: 13636 | C79: LUH\1 | D79: PLO 38 | E79: DB | F79: 9.2 | G79: 64 | H79: B | I79: A | J79: 2.53 | K79: 7500 | L79: 298 | M79: 18975 | N79: 753.94 | O79: 17722 | P79: 44836.66 | Q79: 10222 | R79: 703.9523337 | S79: 1780.999404 | T79: 10 | U79: 77
A80: 78 | B80: 13637 | C80: LUH\1 | D80: PLO 38 | E80: DB | F80: 9.5 | G80: 62 | H80: B | I80: A | J80: 2.45 | K80: 7500 | L80: 298 | M80: 18375 | N80: 730.1 | O80: 18857.4 | P80: 46200.63 | Q80: 11357.4 | R80: 749.0526316 | S80: 1835.178947 | T80: 11 | U80: 78
A81: 79 | B81: 13638 | C81: LUH\1 | D81: PLO 38 | E81: DB | F81: 8.3 | G81: 51 | H81: B | I81: B | J81: 1.44 | K81: 7500 | L81: 298 | M81: 10800 | N81: 429.12 | O81: 16722 | P81: 24079.68 | Q81: 9222 | R81: 664.2303873 | S81: 956.4917577 | T81: 8 | U81: 79
A82: 80 | B82: 13639 | C82: LUH\1 | D82: PLO 38 | E82: DB | F82: 10.5 | G82: 66 | H82: A | I82: A | J82: 3.08 | K82: 10000 | L82: 397 | M82: 30800 | N82: 1222.76 | O82: 18327.4 | P82: 56448.392 | Q82: 8327.4 | R82: 728 | S82: 2242.24 | T82: 10 | U82: 80
A83: 81 | B83: 13640 | C83: LUH\1 | D83: PLO 38 | E83: DB | F83: 9.9 | G83: 52 | H83: C | I83: C | J83: 1.79 | K83: 5000 | L83: 199 | M83: 8950 | N83: 356.21 | O83: 15322 | P83: 27426.38 | Q83: 10322 | R83: 608.6196624 | S83: 1089.429196 | T83: 8 | U83: 81
A84: 82 | B84: 13641 | C84: LUH\1 | D84: PLO 38 | E84: DB | F84: 10.2 | G84: 70 | H84: B | I84: A | J84: 3.37 | K84: 7500 | L84: 298 | M84: 25275 | N84: 1004.26 | O84: 27340.05 | P84: 92135.9685 | Q84: 19840.05 | R84: 1086 | S84: 3659.82 | T84: 8 | U84: 82
A85: 83 | B85: 13642 | C85: LUH\1 | D85: PLO 38 | E85: DB | F85: 8.3 | G85: 58 | H85: A | I85: A | J85: 1.87 | K85: 10000 | L85: 397 | M85: 18700 | N85: 742.39 | O85: 15322 | P85: 28652.14 | Q85: 5322 | R85: 608.6196624 | S85: 1138.118769 | T85: 7 | U85: 83
A86: 84 | B86: 13643 | C86: LUH\1 | D86: PLO 38 | E86: DB | F86: 8.5 | G86: 59 | H86: A | I86: A | J86: 1.98 | K86: 10000 | L86: 397 | M86: 19800 | N86: 786.06 | O86: 19183.35 | P86: 37983.033 | Q86: 9183.35 | R86: 762 | S86: 1508.76 | T86: 7 | U86: 84
A87: 85 | B87: 13644 | C87: 88 | D87: PLO 35 | E87: DB | F87: 10.5 | G87: 56 | H87: II | I87: A | J87: 2.2 | K87: 12000 | L87: 477 | M87: 26400 | N87: 1049.4 | O87: 27818.375 | P87: 61200.425 | Q87: 15818.375 | R87: 1105 | S87: 2431 | T87: 14 | U87: 85
A88: 86 | B88: 13645 | C88: 88 | D88: PLO 35 | E88: DB | F88: 11 | G88: 66 | H88: II | I88: A | J88: 3.23 | K88: 12000 | L88: 477 | M88: 38760 | N88: 1540.71 | O88: 29253.35 | P88: 94488.3205 | Q88: 17253.35 | R88: 1162 | S88: 3753.26 | T88: 14 | U88: 86
A89: 87 | B89: 13646 | C89: 88 | D89: PLO 35 | E89: DB | F89: 6.8 | G89: 45 | H89: A | I89: A | J89: 0.91 | K89: 8000 | L89: 318 | M89: 7280 | N89: 289.38 | O89: 15356.75 | P89: 13974.6425 | Q89: 7356.75 | R89: 610 | S89: 555.1 | T89: 7 | U89: 87
A90: 88 | B90: 13647 | C90: 88 | D90: PLO 35 | E90: DB | F90: 8.5 | G90: 58 | H90: B | I90: B | J90: 1.92 | K90: 7500 | L90: 298 | M90: 14400 | N90: 572.16 | O90: 26254.37812 | P90: 50408.406 | Q90: 18754.37812 | R90: 1042.875 | S90: 2002.32 | T90: 15 | U90: 88
A91: 89 | B91: 13648 | C91: 88 | D91: PLO 35 | E91: DB | F91: 11 | G91: 63 | H91: A | I91: A | J91: 2.93 | K91: 10000 | L91: 397 | M91: 29300 | N91: 1163.21 | O91: 25200.175 | P91: 73836.51275 | Q91: 15200.175 | R91: 1001 | S91: 2932.93 | T91: 11 | U91: 89
A92: 90 | B92: 13649 | C92: 88 | D92: PLO 35 | E92: DB | F92: 11 | G92: 54 | H92: D | I92: C | J92: 2.14 | K92: 3200 | L92: 127 | M92: 6848 | N92: 271.78 | O92: 16086.825 | P92: 34425.8055 | Q92: 12886.825 | R92: 639 | S92: 1367.46 | T92: 3 | U92: 90
A93: 91 | B93: 13650 | C93: 88 | D93: PLO 35 | E93: DB | F93: 8.1 | G93: 57 | H93: II | I93: A | J93: 1.76 | K93: 12000 | L93: 477 | M93: 21120 | N93: 839.52 | O93: 28246.35 | P93: 49713.576 | Q93: 16246.35 | R93: 1122 | S93: 1974.72 | T93: 16 | U93: 91
A94: 92 | B94: 13651 | C94: 88 | D94: PLO 35 | E94: DB | F94: 7.5 | G94: 55 | H94: II | I94: A | J94: 1.52 | K94: 12000 | L94: 477 | M94: 18240 | N94: 725.04 | O94: 19233.7 | P94: 29235.224 | Q94: 7233.7 | R94: 764 | S94: 1161.28 | T94: 10 | U94: 92
A95: 93 | B95: 13652 | C95: 88 | D95: PLO 35 | E95: DB | F95: 7 | G95: 66 | H95: II | I95: A | J95: 2.05 | K95: 12000 | L95: 477 | M95: 24600 | N95: 977.85 | O95: 36831.025 | P95: 75503.60125 | Q95: 24831.025 | R95: 1463 | S95: 2999.15 | T95: 15 | U95: 93
A96: 94 | B96: 13653 | C96: 88 | D96: PLO 35 | E96: DB | F96: 10 | G96: 60 | H96: II | I96: A | J96: 2.42 | K96: 12000 | L96: 477 | M96: 29040 | N96: 1154.34 | O96: 30763.85 | P96: 74448.517 | Q96: 18763.85 | R96: 1222 | S96: 2957.24 | T96: 12 | U96: 94
A97: 95 | B97: 13654 | C97: 88 | D97: PLO 35 | E97: DB | F97: 11 | G97: 63 | H97: II | I97: A | J97: 2.93 | K97: 12000 | L97: 477 | M97: 35160 | N97: 1397.61 | O97: 31846.375 | P97: 93309.87875 | Q97: 19846.375 | R97: 1265 | S97: 3706.45 | T97: 13 | U97: 95
A98: 96 | B98: 13655 | C98: 88 | D98: PLO 35 | E98: DB | F98: 10.5 | G98: 65 | H98: D | I98: C | J98: 2.98 | K98: 3200 | L98: 127 | M98: 9536 | N98: 378.46 | O98: 4707.725 | P98: 14029.0205 | Q98: 1507.725 | R98: 187 | S98: 557.26 | T98: 3 | U98: 96
A99: 97 | B99: 13656 | C99: 88 | D99: PLO 35 | E99: DB | F99: 7.3 | G99: 58 | H99: A | I99: A | J99: 1.65 | K99: 10000 | L99: 397 | M99: 16500 | N99: 655.05 | O99: 24822.55 | P99: 40957.2075 | Q99: 14822.55 | R99: 986 | S99: 1626.9 | T99: 14 | U99: 97
A100: 98 | B100: 13657 | C100: 88 | D100: PLO 35 | E100: DB | F100: 11 | G100: 48 | H100: II | I100: A | J100: 1.68 | K100: 10000 | L100: 397 | M100: 16800 | N100: 666.96 | O100: 20693.85 | P100: 34765.668 | Q100: 10693.85 | R100: 822 | S100: 1380.96 | T100: 13 | U100: 98
A101: 99 | B101: 13658 | C101: 88 | D101: PLO 35 | E101: DB | F101: 9.3 | G101: 66 | H101: A | I101: A | J101: 2.73 | K101: 10000 | L101: 397 | M101: 27300 | N101: 1083.81 | O101: 15322 | P101: 41829.06 | Q101: 5322 | R101: 608.6196624 | S101: 1661.531678 | T101: 8 | U101: 99
A102: 100 | B102: 13659 | C102: 88 | D102: PLO 35 | E102: DB | F102: 11 | G102: 47 | H102: A | I102: A | J102: 1.61 | K102: 8000 | L102: 318 | M102: 12880 | N102: 511.98 | O102: 13997.3 | P102: 22535.653 | Q102: 5997.3 | R102: 556 | S102: 895.16 | T102: 10 | U102: 100
A103: 101 | B103: 13660 | C103: 88 | D103: PLO 35 | E103: DB | F103: 7.2 | G103: 54 | H103: II | I103: A | J103: 1.4 | K103: 12000 | L103: 477 | M103: 16800 | N103: 667.8 | O103: 24293.875 | P103: 34011.425 | Q103: 12293.875 | R103: 965 | S103: 1351 | T103: 14 | U103: 101
A104: 102 | B104: 13661 | C104: 88 | D104: PLO 35 | E104: DB | F104: 7.9 | G104: 58 | H104: C | I104: C | J104: 1.78 | K104: 5000 | L104: 199 | M104: 8900 | N104: 354.22 | O104: 19837.9 | P104: 35311.462 | Q104: 14837.9 | R104: 788 | S104: 1402.64 | T104: 8 | U104: 102
A105: 103 | B105: 13662 | C105: 88 | D105: PLO 35 | E105: DB | F105: 7.8 | G105: 67 | H105: I | I105: A | J105: 2.36 | K105: 18000 | L105: 715 | M105: 42480 | N105: 1687.4 | O105: 27390.4 | P105: 64641.344 | Q105: 9390.4 | R105: 1088 | S105: 2567.68 | T105: 9 | U105: 103
A106: 104 | B106: 13663 | C106: 88 | D106: PLO 35 | E106: DB | F106: 10.4 | G106: 46 | H106: II | I106: A | J106: 1.46 | K106: 10000 | L106: 397 | M106: 14600 | N106: 579.62 | O106: 15734.375 | P106: 22972.1875 | Q106: 5734.375 | R106: 625 | S106: 912.5 | T106: 9 | U106: 104
A107: 105 | B107: 13664 | C107: 88 | D107: PLO 35 | E107: DB | F107: 11 | G107: 53 | H107: A | I107: A | J107: 2.06 | K107: 10000 | L107: 397 | M107: 20600 | N107: 817.82 | O107: 15322 | P107: 31563.32 | Q107: 5322 | R107: 608.6196624 | S107: 1253.756504 | T107: 10 | U107: 105
A108: 106 | B108: 13665 | C108: 88 | D108: PLO 35 | E108: DB | F108: 10.3 | G108: 47 | H108: B | I108: B | J108: 1.51 | K108: 6000 | L108: 238 | M108: 9060 | N108: 359.38 | O108: 16137.175 | P108: 24367.13425 | Q108: 10137.175 | R108: 641 | S108: 967.91 | T108: 9 | U108: 106
A109: 107 | B109: 13666 | C109: 88 | D109: PLO 35 | E109: DB | F109: 7 | G109: 55 | H109: A | I109: A | J109: 1.42 | K109: 10000 | L109: 397 | M109: 14200 | N109: 563.74 | O109: 24872.9 | P109: 35319.518 | Q109: 14872.9 | R109: 988 | S109: 1402.96 | T109: 13 | U109: 107
A110: 108 | B110: 13667 | C110: 88 | D110: PLO 35 | E110: DB | F110: 6.2 | G110: 61 | H110: A | I110: A | J110: 1.55 | K110: 10000 | L110: 397 | M110: 15500 | N110: 615.35 | O110: 25049.125 | P110: 38826.14375 | Q110: 15049.125 | R110: 995 | S110: 1542.25 | T110: 9 | U110: 108
A111: 109 | B111: 13668 | C111: 88 | D111: PLO 35 | E111: DB | F111: 6.3 | G111: 64 | H111: B | I111: A | J111: 1.74 | K111: 7500 | L111: 298 | M111: 13050 | N111: 518.52 | O111: 18251.875 | P111: 31758.2625 | Q111: 10751.875 | R111: 725 | S111: 1261.5 | T111: 8 | U111: 109
A112: 110 | B112: 13669 | C112: 88 | D112: PLO 35 | E112: DB | F112: 7.2 | G112: 65 | H112: II | I112: A | J112: 2.05 | K112: 12000 | L112: 477 | M112: 24600 | N112: 977.85 | O112: 31770.85 | P112: 65130.2425 | Q112: 19770.85 | R112: 1262 | S112: 2587.1 | T112: 11 | U112: 110
A113: 111 | B113: 13670 | C113: 88 | D113: PLO 35 | E113: DB | F113: 6 | G113: 53 | H113: A | I113: A | J113: 1.12 | K113: 10000 | L113: 397 | M113: 11200 | N113: 444.64 | O113: 15322 | P113: 17160.64 | Q113: 5322 | R113: 608.6196624 | S113: 681.6540218 | T113: 7 | U113: 111
A114: 112 | B114: 13671 | C114: 88 | D114: PLO 35 | E114: DB | F114: 8.6 | G114: 56 | H114: A | I114: A | J114: 1.8 | K114: 10000 | L114: 397 | M114: 18000 | N114: 714.6 | O114: 16387.1686 | P114: 29496.90349 | Q114: 6387.168605 | R114: 650.9302326 | S114: 1171.674419 | T114: 8 | U114: 112
A115: 113 | B115: 13672 | C115: 88 | D115: PLO 35 | E115: DB | F115: 8.6 | G115: 59 | H115: II | I115: A | J115: 2.01 | K115: 12000 | L115: 477 | M115: 24120 | N115: 958.77 | O115: 32425.4 | P115: 65175.054 | Q115: 20425.4 | R115: 1288 | S115: 2588.88 | T115: 11 | U115: 113
A116: 114 | B116: 13673 | C116: 88 | D116: PLO 35 | E116: DB | F116: 11 | G116: 52 | H116: A | I116: A | J116: 1.98 | K116: 10000 | L116: 397 | M116: 19800 | N116: 786.06 | O116: 15322 | P116: 30337.56 | Q116: 5322 | R116: 608.6196624 | S116: 1205.066931 | T116: 10 | U116: 114
A117: 115 | B117: 13674 | C117: 88 | D117: PLO 35 | E117: DB | F117: 6.3 | G117: 46 | H117: C | I117: C | J117: 0.88 | K117: 4000 | L117: 159 | M117: 3520 | N117: 139.92 | O117: 14173.525 | P117: 12472.702 | Q117: 10173.525 | R117: 563 | S117: 495.44 | T117: 5 | U117: 115
A118: 116 | B118: 13675 | C118: 88 | D118: PLO 35 | E118: DB | F118: 6.5 | G118: 53 | H118: II | I118: A | J118: 1.22 | K118: 12000 | L118: 477 | M118: 14640 | N118: 581.94 | O118: 15322 | P118: 18692.84 | Q118: 3322 | R118: 608.6196624 | S118: 742.5159881 | T118: 7 | U118: 116
A119: 117 | B119: 13676 | C119: 88 | D119: PLO 35 | E119: DB | F119: 5.2 | G119: 52 | H119: A | I119: A | J119: 0.94 | K119: 10000 | L119: 397 | M119: 9400 | N119: 373.18 | O119: 15322 | P119: 14402.68 | Q119: 5322 | R119: 608.6196624 | S119: 572.1024826 | T119: 7 | U119: 117
A120: 118 | B120: 13677 | C120: 88 | D120: PLO 35 | E120: DB | F120: 7 | G120: 57 | H120: II | I120: A | J120: 1.52 | K120: 12000 | L120: 477 | M120: 18240 | N120: 725.04 | O120: 15322 | P120: 23289.44 | Q120: 3322 | R120: 608.6196624 | S120: 925.1018868 | T120: 9 | U120: 118
A121: 119 | B121: 13678 | C121: 88 | D121: PLO 35 | E121: DB | F121: 7.5 | G121: 58 | H121: A | I121: A | J121: 1.69 | K121: 10000 | L121: 397 | M121: 16900 | N121: 670.93 | O121: 17722 | P121: 29950.18 | Q121: 7722 | R121: 703.9523337 | S121: 1189.679444 | T121: 9 | U121: 119
A122: 120 | B122: 13679 | C122: 88 | D122: PLO 35 | E122: DB | F122: 6.3 | G122: 54 | H122: A | I122: A | J122: 1.23 | K122: 10000 | L122: 397 | M122: 12300 | N122: 488.31 | O122: 16722 | P122: 20568.06 | Q122: 6722 | R122: 664.2303873 | S122: 817.0033764 | T122: 6 | U122: 120
A123: 121 | B123: 13680 | C123: 88 | D123: PLO 35 | E123: DB | F123: 7 | G123: 50 | H123: A | I123: A | J123: 1.17 | K123: 10000 | L123: 397 | M123: 11700 | N123: 464.49 | O123: 15322 | P123: 17926.74 | Q123: 5322 | R123: 608.6196624 | S123: 712.085005 | T123: 8 | U123: 121
A124: 122 | B124: 13681 | C124: 88 | D124: PLO 35 | E124: DB | F124: 6 | G124: 50 | H124: A | I124: A | J124: 1 | K124: 10000 | L124: 397 | M124: 10000 | N124: 397 | O124: 14173.525 | P124: 14173.525 | Q124: 4173.525 | R124: 563 | S124: 563 | T124: 7 | U124: 122
A125: 123 | B125: 13682 | C125: 88 | D125: PLO 35 | E125: DB | F125: 9 | G125: 50 | H125: A | I125: A | J125: 1.5 | K125: 10000 | L125: 397 | M125: 15000 | N125: 595.5 | O125: 15322 | P125: 22983 | Q125: 5322 | R125: 608.6196624 | S125: 912.9294935 | T125: 10 | U125: 123
A126: 124 | B126: 13683 | C126: 88 | D126: PLO 35 | E126: DB | F126: 8 | G126: 44 | H126: II | I126: A | J126: 1.02 | K126: 10000 | L126: 397 | M126: 10200 | N126: 404.94 | O126: 15180.525 | P126: 15484.1355 | Q126: 5180.525 | R126: 603 | S126: 615.06 | T126: 9 | U126: 124
A127: 125 | B127: 13684 | C127: 88 | D127: PLO 35 | E127: DB | F127: 10.9 | G127: 67 | H127: A | I127: A | J127: 3.3 | K127: 10000 | L127: 397 | M127: 33000 | N127: 1310.1 | O127: 21776.375 | P127: 71862.0375 | Q127: 11776.375 | R127: 865 | S127: 2854.5 | T127: 7 | U127: 125
A128: 126 | B128: 13685 | C128: 88 | D128: PLO 35 | E128: DB | F128: 3.8 | G128: 64 | H128: A | I128: A | J128: 1.05 | K128: 10000 | L128: 397 | M128: 10500 | N128: 416.85 | O128: 24797.375 | P128: 26037.24375 | Q128: 14797.375 | R128: 985 | S128: 1034.25 | T128: 8 | U128: 126
A129: 127 | B129: 13686 | C129: 88 | D129: PLO 35 | E129: DB | F129: 3.2 | G129: 56 | H129: II | I129: A | J129: 0.67 | K129: 12000 | L129: 477 | M129: 8040 | N129: 319.59 | O129: 19686.85 | P129: 13190.1895 | Q129: 7686.85 | R129: 782 | S129: 523.94 | T129: 6 | U129: 127
A130: 128 | B130: 13687 | C130: 88 | D130: PLO 35 | E130: DB | F130: 3 | G130: 58 | H130: II | I130: A | J130: 0.68 | K130: 12000 | L130: 477 | M130: 8160 | N130: 324.36 | O130: 21700.85 | P130: 14756.578 | Q130: 9700.85 | R130: 862 | S130: 586.16 | T130: 8 | U130: 128
A131: 129 | B131: 13688 | C131: 88 | D131: PLO 35 | E131: DB | F131: 4.1 | G131: 65 | H131: I | I131: A | J131: 1.17 | K131: 18000 | L131: 715 | M131: 21060 | N131: 836.55 | O131: 29832.375 | P131: 34903.87875 | Q131: 11832.375 | R131: 1185 | S131: 1386.45 | T131: 6 | U131: 129
A132: 130 | B132: 13689 | C132: 88 | D132: PLO 35 | E132: DB | F132: 4.5 | G132: 61 | H132: A | I132: A | J132: 1.12 | K132: 10000 | L132: 397 | M132: =J132*K132 -> 11200 | N132: =J132*L132 -> 444.64 | O132: 29253.35 | P132: 32763.752 | Q132: 19253.35 | R132: 1162 | S132: 1301.44 | T132: 11 | U132: 130
A133: 131 | B133: 13690 | C133: 88 | D133: PLO 35 | E133: DB | F133: 4.9 | G133: 58 | H133: A | I133: A | J133: 1.1 | K133: 10000 | L133: 397 | M133: 11000 | N133: 436.7 | O133: 13997.3 | P133: 15397.03 | Q133: 3997.3 | R133: 556 | S133: 611.6 | T133: 5 | U133: 131
A134: 132 | B134: 13691 | C134: 88 | D134: PLO 35 | E134: DB | F134: 4.9 | G134: 58 | H134: II | I134: A | J134: 1.1 | K134: 12000 | L134: 477 | M134: 13200 | N134: 524.7 | O134: 21851.9 | P134: 24037.09 | Q134: 9851.9 | R134: 868 | S134: 954.8 | T134: 10 | U134: 132
A135: 133 | B135: 13692 | C135: 88 | D135: PLO 35 | E135: DB | F135: 3 | G135: 65 | H135: A | I135: A | J135: 0.85 | K135: 10000 | L135: 397 | M135: 8500 | N135: 337.45 | O135: 30763.85 | P135: 26149.2725 | Q135: 20763.85 | R135: 1222 | S135: 1038.7 | T135: 4 | U135: 133
A136: 134 | B136: 13693 | C136: 88 | D136: PLO 35 | E136: DB | F136: 3.8 | G136: 61 | H136: II | I136: A | J136: 0.95 | K136: 12000 | L136: 477 | M136: 11400 | N136: 453.15 | O136: 25200.175 | P136: 23940.16625 | Q136: 13200.175 | R136: 1001 | S136: 950.95 | T136: 4 | U136: 134
A137: 135 | B137: 13694 | C137: 88 | D137: PLO 35 | E137: DB | F137: 3 | G137: 60 | H137: II | I137: A | J137: 0.72 | K137: 12000 | L137: 477 | M137: 8640 | N137: 343.44 | O137: 14274.225 | P137: 10277.442 | Q137: 2274.225 | R137: 567 | S137: 408.24 | T137: 3 | U137: 135
A138: 136 | B138: 13695 | C138: 88 | D138: PLO 35 | E138: DB | F138: 3.1 | G138: 58 | H138: A | I138: A | J138: 0.7 | K138: 10000 | L138: 397 | M138: 7000 | N138: 277.9 | O138: NEVYDRAŽENO | P138: NEVYDRAŽENO | Q138: NEVYDRAŽENO | R138: NEVYDRAŽENO | S138: NEVYDRAŽENO | T138: 3 | U138: 136
A139: 137 | B139: 13696 | C139: 88 | D139: PLO 35 | E139: DB | F139: 4.1 | G139: 58 | H139: II | I139: A | J139: 0.92 | K139: 12000 | L139: 477 | M139: 11040 | N139: 438.84 | O139: 17722 | P139: 16304.24 | Q139: 5722 | R139: 703.9523337 | S139: 647.636147 | T139: 7 | U139: 137
A140: 138 | B140: 13697 | C140: 88 | D140: PLO 35 | E140: DB | F140: 4 | G140: 53 | H140: II | I140: A | J140: 0.75 | K140: 12000 | L140: 477 | M140: 9000 | N140: 357.75 | O140: 15322 | P140: 11491.5 | Q140: 3322 | R140: 608.6196624 | S140: 456.4647468 | T140: 8 | U140: 138
A141: 139 | B141: 13698 | C141: 88 | D141: PLO 35 | E141: DB | F141: 5 | G141: 62 | H141: II | I141: A | J141: 1.29 | K141: 12000 | L141: 477 | M141: 15480 | N141: 615.33 | O141: 29253.35 | P141: 37736.8215 | Q141: 17253.35 | R141: 1162 | S141: 1498.98 | T141: 12 | U141: 139
A142: 140 | B142: 13699 | C142: 88 | D142: PLO 35 | E142: DB | F142: 4.9 | G142: 67 | H142: II | I142: A | J142: 1.48 | K142: 12000 | L142: 477 | M142: 17760 | N142: 705.96 | O142: 28397.4 | P142: 42028.152 | Q142: 16397.4 | R142: 1128 | S142: 1669.44 | T142: 8 | U142: 140
A143: 141 | B143: 13700 | C143: 81 | D143: PLO 35 | E143: DB | F143: 3 | G143: 54 | H143: II | I143: A | J143: 0.58 | K143: 12000 | L143: 477 | M143: 6960 | N143: 276.66 | O143: 27818.375 | P143: 16134.6575 | Q143: 15818.375 | R143: 1105 | S143: 640.9 | T143: 8 | U143: 141
A144: 142 | B144: 13701 | C144: 81 | D144: PLO 35 | E144: DB | F144: 3.9 | G144: 45 | H144: A | I144: A | J144: 0.52 | K144: 8000 | L144: 318 | M144: 4160 | N144: 165.36 | O144: NEVYDRAŽENO | P144: NEVYDRAŽENO | Q144: NEVYDRAŽENO | R144: NEVYDRAŽENO | S144: NEVYDRAŽENO | T144: 2 | U144: 142
A145: 143 | B145: 13702 | C145: 88 | D145: PLO 35 | E145: DB | F145: 4 | G145: 66 | H145: C | I145: B | J145: 1.17 | K145: 5000 | L145: 199 | M145: 5850 | N145: 232.83 | O145: 22305.05 | P145: 26096.9085 | Q145: 17305.05 | R145: 886 | S145: 1036.62 | T145: 6 | U145: 143
A146: 144 | B146: 13703 | C146: 88 | D146: PLO 35 | E146: DB | F146: 5 | G146: 55 | H146: II | I146: A | J146: 1.01 | K146: 12000 | L146: 477 | M146: 12120 | N146: 481.77 | O146: 24218.35 | P146: 24460.5335 | Q146: 12218.35 | R146: 962 | S146: 971.62 | T146: 11 | U146: 144
A147: 145 | B147: 13704 | C147: 88 | D147: PLO 35 | E147: DB | F147: 4.5 | G147: 58 | H147: A | I147: A | J147: 1.01 | K147: 10000 | L147: 397 | M147: 10100 | N147: 400.97 | O147: 13493.8 | P147: 13628.738 | Q147: 3493.8 | R147: 536 | S147: 541.36 | T147: 5 | U147: 145
A148: 146 | B148: 13705 | C148: 88 | D148: PLO 35 | E148: DB | F148: 5 | G148: 51 | H148: II | I148: A | J148: 0.87 | K148: 12000 | L148: 477 | M148: 10440 | N148: 414.99 | O148: 18931.6 | P148: 16470.492 | Q148: 6931.6 | R148: 752 | S148: 654.24 | T148: 12 | U148: 146
A149: 147 | B149: 13706 | C149: 88 | D149: PLO 35 | E149: DB | F149: 5.2 | G149: 58 | H149: II | I149: A | J149: 1.17 | K149: 12000 | L149: 477 | M149: 14040 | N149: 558.09 | O149: 27818.375 | P149: 32547.49875 | Q149: 15818.375 | R149: 1105 | S149: 1292.85 | T149: 14 | U149: 147
A150: 148 | B150: 13707 | C150: 88 | D150: PLO 35 | E150: DB | F150: 4.7 | G150: 60 | H150: A | I150: A | J150: 1.14 | K150: 10000 | L150: 397 | M150: 11400 | N150: 452.58 | O150: 17119 | P150: 19515.66 | Q150: 7119 | R150: 680 | S150: 775.2 | T150: 12 | U150: 148
A151: 149 | B151: 13708 | C151: 88 | D151: PLO 35 | E151: DB | F151: 5 | G151: 54 | H151: II | I151: A | J151: 0.97 | K151: 12000 | L151: 477 | M151: 11640 | N151: 462.69 | O151: 18352.575 | P151: 17801.99775 | Q151: 6352.575 | R151: 729 | S151: 707.13 | T151: 8 | U151: 149
A152: 150 | B152: 13709 | C152: 88 | D152: PLO 35 | E152: DB | F152: 5.3 | G152: 52 | H152: A | I152: A | J152: 0.96 | K152: 10000 | L152: 397 | M152: 9600 | N152: 381.12 | O152: 15960.95 | P152: 15322.512 | Q152: 5960.95 | R152: 634 | S152: 608.64 | T152: 7 | U152: 150
A153: 151 | B153: 13710 | C153: 88 | D153: PLO 35 | E153: DB | F153: 4.5 | G153: 49 | H153: II | I153: A | J153: 0.72 | K153: 10000 | L153: 397 | M153: 7200 | N153: 285.84 | O153: 17345.575 | P153: 12488.814 | Q153: 7345.575 | R153: 689 | S153: 496.08 | T153: 11 | U153: 151
A154: 152 | B154: 13711 | C154: 88 | D154: PLO 35 | E154: DB | F154: 4.2 | G154: 63 | H154: II | I154: A | J154: 1.12 | K154: 12000 | L154: 477 | M154: 13440 | N154: 534.24 | O154: 15322 | P154: 17160.64 | Q154: 3322 | R154: 608.6196624 | S154: 681.6540218 | T154: 7 | U154: 152
A155: 153 | B155: 13712 | C155: 88 | D155: PLO 35 | E155: DB | F155: 4.2 | G155: 63 | H155: II | I155: A | J155: 1.12 | K155: 12000 | L155: 477 | M155: 13440 | N155: 534.24 | O155: 15322 | P155: 17160.64 | Q155: 3322 | R155: 608.6196624 | S155: 681.6540218 | T155: 6 | U155: 153
A156: 154 | B156: 13713 | C156: 88 | D156: PLO 35 | E156: DB | F156: 4.5 | G156: 58 | H156: C | I156: C | J156: 1.01 | K156: 5000 | L156: 199 | M156: 5050 | N156: 200.99 | O156: 16993.125 | P156: 17163.05625 | Q156: 11993.125 | R156: 675 | S156: 681.75 | T156: 11 | U156: 154
A157: 155 | B157: 13714 | C157: 88 | D157: PLO 35 | E157: DB | F157: 4.2 | G157: 56 | H157: II | I157: A | J157: 0.88 | K157: 12000 | L157: 477 | M157: 10560 | N157: 419.76 | O157: 15322 | P157: 13483.36 | Q157: 3322 | R157: 608.6196624 | S157: 535.5853029 | T157: 9 | U157: 155
A158: 156 | B158: 13715 | C158: 88 | D158: PLO 35 | E158: DB | F158: 4.8 | G158: 54 | H158: II | I158: A | J158: 0.94 | K158: 12000 | L158: 477 | M158: 11280 | N158: 448.38 | O158: 15322 | P158: 14402.68 | Q158: 3322 | R158: 608.6196624 | S158: 572.1024826 | T158: 7 | U158: 156
A159: 157 | B159: 13716 | C159: 88 | D159: PLO 35 | E159: DB | F159: 4.9 | G159: 55 | H159: A | I159: A | J159: 0.99 | K159: 10000 | L159: 397 | M159: 9900 | N159: 393.03 | O159: 19863.075 | P159: 19664.44425 | Q159: 9863.075 | R159: 789 | S159: 781.11 | T159: 7 | U159: 157
A160: 158 | B160: 13717 | C160: 88 | D160: PLO 35 | E160: DB | F160: 5.2 | G160: 60 | H160: A | I160: A | J160: 1.26 | K160: 10000 | L160: 397 | M160: 12600 | N160: 500.22 | O160: 13997.3 | P160: 17636.598 | Q160: 3997.3 | R160: 556 | S160: 700.56 | T160: 6 | U160: 158
A161: 159 | B161: 13718 | C161: 88 | D161: PLO 35 | E161: DB | F161: 4.7 | G161: 56 | H161: II | I161: A | J161: 0.99 | K161: 12000 | L161: 477 | M161: 11880 | N161: 472.23 | O161: 16993.125 | P161: 16823.19375 | Q161: 4993.125 | R161: 675 | S161: 668.25 | T161: 8 | U161: 159
A162: 160 | B162: 13719 | C162: 81 | D162: PLO 35 | E162: DB | F162: 10 | G162: 48 | H162: A | I162: A | J162: 1.53 | K162: 8000 | L162: 318 | M162: 12240 | N162: 486.54 | O162: 16942.775 | P162: 25922.44575 | Q162: 8942.775 | R162: 673 | S162: 1029.69 | T162: 10 | U162: 160
A163: 161 | B163: 13720 | C163: 81 | D163: PLO 35 | E163: DB | F163: 9.9 | G163: 58 | H163: A | I163: A | J163: 2.23 | K163: 10000 | L163: 397 | M163: 22300 | N163: 885.31 | O163: 27390.4 | P163: 61080.592 | Q163: 17390.4 | R163: 1088 | S163: 2426.24 | T163: 13 | U163: 161
A164: 162 | B164: 13721 | C164: 81 | D164: PLO 35 | E164: DB | F164: 5.5 | G164: 51 | H164: I | I164: A | J164: 0.95 | K164: 18000 | L164: 715 | M164: 17100 | N164: 679.25 | O164: 20442.1 | P164: 19419.995 | Q164: 2442.1 | R164: 812 | S164: 771.4 | T164: 6 | U164: 162
A165: 163 | B165: 13722 | C165: 81 | D165: PLO 35 | E165: DB | F165: 6 | G165: 55 | H165: A | I165: A | J165: 1.21 | K165: 10000 | L165: 397 | M165: 12100 | N165: 480.37 | O165: 15322 | P165: 18539.62 | Q165: 5322 | R165: 608.6196624 | S165: 736.4297915 | T165: 7 | U165: 163
A166: 164 | B166: 13723 | C166: 81 | D166: PLO 35 | E166: DB | F166: 6 | G166: 50 | H166: II | I166: A | J166: 1 | K166: 12000 | L166: 477 | M166: 12000 | N166: 477 | O166: 25200.175 | P166: 25200.175 | Q166: 13200.175 | R166: 1001 | S166: 1001 | T166: 13 | U166: 164
A167: 165 | B167: 13724 | C167: 81 | D167: PLO 35 | E167: DB | F167: 10.9 | G167: 50 | H167: II | I167: A | J167: 1.81 | K167: 12000 | L167: 477 | M167: 21720 | N167: 863.37 | O167: 15322 | P167: 27732.82 | Q167: 3322 | R167: 608.6196624 | S167: 1101.601589 | T167: 5 | U167: 165
A168: 166 | B168: 13725 | C168: 81 | D168: PLO 35 | E168: DB | F168: 10.9 | G168: 45 | H168: II | I168: A | J168: 1.46 | K168: 10000 | L168: 397 | M168: 14600 | N168: 579.62 | O168: 15381.925 | P168: 22457.6105 | Q168: 5381.925 | R168: 611 | S168: 892.06 | T168: 8 | U168: 166
A169: 167 | B169: 13726 | C169: 81 | D169: PLO 35 | E169: DB | F169: 8 | G169: 47 | H169: A | I169: A | J169: 1.17 | K169: 8000 | L169: 318 | M169: 9360 | N169: 372.06 | O169: 15684.025 | P169: 18350.30925 | Q169: 7684.025 | R169: 623 | S169: 728.91 | T169: 9 | U169: 167
A170: 168 | B170: 13727 | C170: 81 | D170: PLO 35 | E170: DB | F170: 8 | G170: 51 | H170: A | I170: A | J170: 1.39 | K170: 10000 | L170: 397 | M170: 13900 | N170: 551.83 | O170: 15322 | P170: 21297.58 | Q170: 5322 | R170: 608.6196624 | S170: 845.9813307 | T170: 9 | U170: 168
A171: 169 | B171: 13728 | C171: 81 | D171: PLO 35 | E171: DB | F171: 10.9 | G171: 56 | H171: II | I171: A | J171: 2.29 | K171: 12000 | L171: 477 | M171: 27480 | N171: 1092.33 | O171: 27818.375 | P171: 63704.07875 | Q171: 15818.375 | R171: 1105 | S171: 2530.45 | T171: 13 | U171: 169
A172: 170 | B172: 13729 | C172: 81 | D172: PLO 35 | E172: DB | F172: 7 | G172: 62 | H172: II | I172: A | J172: 1.81 | K172: 12000 | L172: 477 | M172: 21720 | N172: 863.37 | O172: 22279.875 | P172: 40326.57375 | Q172: 10279.875 | R172: 885 | S172: 1601.85 | T172: 9 | U172: 170
A173: 171 | B173: 13730 | C173: 81 | D173: PLO 35 | E173: DB | F173: 7 | G173: 70 | H173: II | I173: A | J173: 2.31 | K173: 12000 | L173: 477 | M173: 27720 | N173: 1101.87 | O173: 21708.04286 | P173: 50145.579 | Q173: 9708.042857 | R173: 862.2857143 | S173: 1991.88 | T173: 8 | U173: 171
A174: 172 | B174: 13731 | C174: 81 | D174: PLO 35 | E174: DB | F174: 9.5 | G174: 51 | H174: A | I174: A | J174: 1.65 | K174: 10000 | L174: 397 | M174: 16500 | N174: 655.05 | O174: 13997.3 | P174: 23095.545 | Q174: 3997.3 | R174: 556 | S174: 917.4 | T174: 7 | U174: 172
A175: 173 | B175: 13732 | C175: 81 | D175: PLO 35 | E175: DB | F175: 10.5 | G175: 46 | H175: A | I175: A | J175: 1.47 | K175: 8000 | L175: 318 | M175: 11760 | N175: 467.46 | O175: 15532.975 | P175: 22833.47325 | Q175: 7532.975 | R175: 617 | S175: 906.99 | T175: 8 | U175: 173
A176: 174 | B176: 13733 | C176: 81 | D176: PLO 35 | E176: DB | F176: 10 | G176: 48 | H176: A | I176: A | J176: 1.53 | K176: 8000 | L176: 318 | M176: 12240 | N176: 486.54 | O176: 15910.6 | P176: 24343.218 | Q176: 7910.6 | R176: 632 | S176: 966.96 | T176: 7 | U176: 174
A177: 175 | B177: 13734 | C177: 81 | D177: PLO 35 | E177: DB | F177: 9 | G177: 50 | H177: II | I177: A | J177: 1.5 | K177: 12000 | L177: 477 | M177: 18000 | N177: 715.5 | O177: 17244.875 | P177: 25867.3125 | Q177: 5244.875 | R177: 685 | S177: 1027.5 | T177: 9 | U177: 175
A178: 176 | B178: 13735 | C178: 81 | D178: PLO 35 | E178: DB | F178: 7.9 | G178: 46 | H178: II | I178: A | J178: 1.11 | K178: 10000 | L178: 397 | M178: 11100 | N178: 440.67 | O178: 13745.55 | P178: 15257.5605 | Q178: 3745.55 | R178: 546 | S178: 606.06 | T178: 6 | U178: 176
A179: 177 | B179: 13736 | C179: 81 | D179: PLO 35 | E179: DB | F179: 9.9 | G179: 61 | H179: A | I179: A | J179: 2.47 | K179: 10000 | L179: 397 | M179: 24700 | N179: 980.59 | O179: 17722 | P179: 43773.34 | Q179: 7722 | R179: 703.9523337 | S179: 1738.762264 | T179: 8 | U179: 177
A180: 178 | B180: 13737 | C180: 81 | D180: PLO 35 | E180: DB | F180: 10.9 | G180: 61 | H180: B | I180: A | J180: 2.72 | K180: 7500 | L180: 298 | M180: 20400 | N180: 810.56 | O180: 19762.375 | P180: 53753.66 | Q180: 12262.375 | R180: 785 | S180: 2135.2 | T180: 10 | U180: 178
A181: 179 | B181: 13738 | C181: 81 | D181: PLO 35 | E181: DB | F181: 9.8 | G181: 69 | H181: A | I181: A | J181: 3.15 | K181: 10000 | L181: 397 | M181: 31500 | N181: 1250.55 | O181: 32375.05 | P181: 101981.4075 | Q181: 22375.05 | R181: 1286 | S181: 4050.9 | T181: 12 | U181: 179
A182: 180 | B182: 13739 | C182: 81 | D182: PLO 35 | E182: DB | F182: 10 | G182: 50 | H182: A | I182: A | J182: 1.66 | K182: 10000 | L182: 397 | M182: 16600 | N182: 659.02 | O182: 15322 | P182: 25434.52 | Q182: 5322 | R182: 608.6196624 | S182: 1010.30864 | T182: 7 | U182: 180
A183: 181 | B183: 13740 | C183: 81 | D183: PLO 35 | E183: DB | F183: 7.8 | G183: 72 | H183: II | I183: A | J183: 2.73 | K183: 12000 | L183: 477 | M183: 32760 | N183: 1302.21 | O183: 30046.03974 | P183: 82025.6885 | Q183: 18046.03974 | R183: 1193.487179 | S183: 3258.22 | T183: 11 | U183: 181
A184: 182 | B184: 13741 | C184: 81 | D184: PLO 35 | E184: DB | F184: 6.1 | G184: 49 | H184: II | I184: A | J184: 0.97 | K184: 10000 | L184: 397 | M184: 9700 | N184: 385.09 | O184: 19107.825 | P184: 18534.59025 | Q184: 9107.825 | R184: 759 | S184: 736.23 | T184: 8 | U184: 182
A185: 183 | B185: 13742 | C185: 81 | D185: PLO 35 | E185: DB | F185: 9.9 | G185: 54 | H185: II | I185: A | J185: 1.93 | K185: 12000 | L185: 477 | M185: 23160 | N185: 920.61 | O185: 15322 | P185: 29571.46 | Q185: 3322 | R185: 608.6196624 | S185: 1174.635948 | T185: 7 | U185: 183
A186: 184 | B186: 13743 | C186: 81 | D186: PLO 35 | E186: DB | F186: 11 | G186: 56 | H186: A | I186: A | J186: 2.31 | K186: 10000 | L186: 397 | M186: 23100 | N186: 917.07 | O186: 15322 | P186: 35393.82 | Q186: 5322 | R186: 608.6196624 | S186: 1405.91142 | T186: 9 | U186: 184
A187: 185 | B187: 13744 | C187: 81 | D187: PLO 35 | E187: DB | F187: 9.9 | G187: 65 | H187: II | I187: A | J187: 2.81 | K187: 12000 | L187: 477 | M187: 33720 | N187: 1340.37 | O187: 17722 | P187: 49798.82 | Q187: 5722 | R187: 703.9523337 | S187: 1978.106058 | T187: 9 | U187: 185
A188: 186 | B188: 13745 | C188: 81 | D188: PLO 35 | E188: DB | F188: 10.9 | G188: 51 | H188: A | I188: A | J188: 1.89 | K188: 10000 | L188: 397 | M188: 18900 | N188: 750.33 | O188: 15322 | P188: 28958.58 | Q188: 5322 | R188: 608.6196624 | S188: 1150.291162 | T188: 9 | U188: 186
A189: 187 | B189: 13746 | C189: 81 | D189: PLO 35 | E189: DB | F189: 5 | G189: 78 | H189: II | I189: A | J189: 2.06 | K189: 12000 | L189: 477 | M189: 24720 | N189: 982.62 | O189: 21700.85 | P189: 44703.751 | Q189: 9700.85 | R189: 862 | S189: 1775.72 | T189: 8 | U189: 187
A190: 188 | B190: 13747 | C190: 81 | D190: PLO 35 | E190: DB | F190: 5.5 | G190: 50 | H190: II | I190: A | J190: 0.92 | K190: 12000 | L190: 477 | M190: 11040 | N190: 438.84 | O190: 17068.65 | P190: 15703.158 | Q190: 5068.65 | R190: 678 | S190: 623.76 | T190: 8 | U190: 188
A191: 189 | B191: 13748 | C191: 81 | D191: PLO 35 | E191: DB | F191: 5.5 | G191: 50 | H191: II | I191: A | J191: 0.92 | K191: 12000 | L191: 477 | M191: 11040 | N191: 438.84 | O191: 17169.35 | P191: 15795.802 | Q191: 5169.35 | R191: 682 | S191: 627.44 | T191: 9 | U191: 189
A192: 190 | B192: 13749 | C192: 81 | D192: PLO 35 | E192: ORC | F192: 3 | G192: 60 | H192: A | I192: A | J192: 0.72 | K192: 10000 | L192: 397 | M192: 7200 | N192: 285.84 | O192: 19636.5 | P192: 14138.28 | Q192: 9636.5 | R192: 780 | S192: 561.6 | T192: 4 | U192: 190
A193: 191 | B193: 13750 | C193: 81 | D193: PLO 35 | E193: ORC | F193: 10 | G193: 70 | H193: II | I193: A | J193: 3.3 | K193: 12000 | L193: 477 | M193: 39600 | N193: 1574.1 | O193: 39323.35 | P193: 129767.055 | Q193: 27323.35 | R193: 1562 | S193: 5154.6 | T193: 9 | U193: 191
A194: 192 | B194: 13751 | C194: 81 | D194: PLO 35 | E194: ORC | F194: 10.9 | G194: 60 | H194: II | I194: A | J194: 2.63 | K194: 12000 | L194: 477 | M194: 31560 | N194: 1254.51 | O194: 38744.325 | P194: 101897.5748 | Q194: 26744.325 | R194: 1539 | S194: 4047.57 | T194: 9 | U194: 192
A195: 193 | B195: 13752 | C195: 81 | D195: PLO 35 | E195: ORC | F195: 9.9 | G195: 58 | H195: II | I195: A | J195: 2.23 | K195: 12000 | L195: 477 | M195: 26760 | N195: 1063.71 | O195: 38240.825 | P195: 85277.03975 | Q195: 26240.825 | R195: 1519 | S195: 3387.37 | T195: 8 | U195: 193
A196: 194 | B196: 13753 | C196: 138 | D196: PLO 35 | E196: ORC | F196: 12 | G196: 44 | H196: II | I196: A | J196: 1.54 | K196: 12000 | L196: 477 | M196: =J196*K196 -> 18480 | N196: =J196*L196 -> 734.58 | O196: 21625.325 | P196: 33303.0005 | Q196: 9625.325 | R196: 859 | S196: 1322.86 | T196: 5 | U196: 194
A197: 195 | B197: 13754 | C197: 138 | D197: PLO 35 | E197: ORC | F197: 11 | G197: 52 | H197: A | I197: A | J197: 1.98 | K197: 10000 | L197: 397 | M197: 19800 | N197: 786.06 | O197: 24149.23318 | P197: 47815.4817 | Q197: 14149.23318 | R197: 959.2545455 | S197: 1899.324 | T197: 5 | U197: 195
A198: 196 | B198: 13755 | C198: 138 | D198: PLO 35 | E198: ORC | F198: 8 | G198: 46 | H198: II | I198: A | J198: 1.12 | K198: 12000 | L198: 477 | M198: 13440 | N198: 534.24 | O198: 23135.825 | P198: 25912.124 | Q198: 11135.825 | R198: 919 | S198: 1029.28 | T198: 4 | U198: 196
A199: 197 | B199: 13756 | C199: 138 | D199: PLO 35 | E199: ORC | F199: 6 | G199: 43 | H199: A | I199: A | J199: 0.73 | K199: 10000 | L199: 397 | M199: 7300 | N199: 289.81 | O199: 17849.075 | P199: 13029.82475 | Q199: 7849.075 | R199: 709 | S199: 517.57 | T199: 4 | U199: 197
A200: 198 | B200: 13757 | C200: 138 | D200: PLO 35 | E200: ORC | F200: 10 | G200: 43 | H200: II | I200: A | J200: 1.22 | K200: 12000 | L200: 477 | M200: 14640 | N200: 581.94 | O200: 17093.825 | P200: 20854.4665 | Q200: 5093.825 | R200: 679 | S200: 828.38 | T200: 4 | U200: 198
... 455 more rows
